bitfinex/quotes_SOLUSD_20250604
["timestamp","ask_amount","ask_price","bid_price","bid_amount"]
[1748998381469,14.68041694,154.95,154.9,14.68041694]
[1748998381878,26.0,154.98,154.88,46.1214]
[1748998381879,26.0,154.98,154.91,14.68041694]
[1748998382078,14.68041694,154.96,154.91,14.68041694]
[1748998382869,33.9982,155.0,154.92,14.68041694]
[1748998383203,33.9982,155.0,154.93,54.50041694]
[1748998383204,14.68041694,154.98,154.93,54.50041694]
[1748998383497,0.14216157,155.03,154.95,14.68041694]
[1748998383797,14.68041694,154.99,154.95,14.68041694]
[1748998383962,0.14216157,155.03,154.95,14.68041694]
[1748998384165,14.68041694,155.0,154.95,14.68041694]
[1748998384906,34.0486,155.04,154.96,14.68041694]
[1748998385196,14.68041694,155.01,154.96,14.68041694]
[1748998386799,34.0486,155.04,154.96,14.68041694]
[1748998386979,14.68041694,155.01,154.96,14.68041694]
[1748998389683,14.68041694,155.0,154.96,14.68041694]
[1748998389868,14.68041694,155.0,154.96,103.28041694]
[1748998390268,14.68041694,154.99,154.96,88.6]
[1748998390994,48.72901694,155.04,154.96,88.6]
[1748998391293,14.68041694,155.0,154.96,103.28041694]
[1748998392362,48.72901694,155.04,154.96,103.28041694]
[1748998392363,14.68041694,155.01,154.96,103.28041694]
[1748998393196,14.68041694,155.0,154.96,103.28041694]
[1748998394297,14.68041694,155.0,154.97,39.8]
[1748998400699,34.0486,155.04,154.97,39.8]
[1748998401023,14.68041694,155.02,154.98,14.68041694]
[1748998403085,26.0,155.07,155.0,14.68041694]
[1748998403413,14.68041694,155.05,155.01,39.78]
[1748998403596,14.68041694,155.06,155.01,54.46041694]
[1748998403784,10.42,155.09,155.03,14.68041694]
[1748998403785,14.68041694,155.07,155.03,14.68041694]
[1748998404211,0.8814172,155.1,155.05,14.68041694]
[1748998404415,15.56183414,155.1,155.06,39.78]
[1748998405197,0.8814172,155.1,155.06,39.78]
[1748998405534,14.68041694,155.08,155.06,39.78]
[1748998406411,14.68041694,155.07,155.02,26.0]
[1748998406609,14.68041694,155.05,155.03,39.78]
[1748998408637,14.68041694,155.04,155.03,39.78]
[1748998410523,14.68041694,155.05,155.03,39.78]
[1748998413402,14.68041694,155.05,155.01,1.6064]
[1748998413621,14.68041694,155.05,155.02,39.76]
[1748998418522,14.68041694,155.04,155.02,39.76]
[1748998421444,0.14216157,155.09,155.02,39.76]
[1748998421445,14.68041694,155.05,155.02,39.76]
[1748998424249,14.68041694,155.04,155.02,39.76]
[1748998425530,26.0,155.07,155.02,39.76]
[1748998425728,14.68041694,155.05,155.02,39.76]
[1748998427340,14.68041694,155.06,155.02,39.76]
[1748998427546,14.68041694,155.05,155.02,39.76]
[1748998428433,14.68041694,155.06,155.02,39.76]
[1748998429932,26.0,155.07,155.02,54.44041694]
[1748998429933,14.68041694,155.07,155.02,54.44041694]
[1748998430466,14.68041694,155.06,155.02,54.44041694]
[1748998430633,14.68041694,155.06,155.02,39.76]
[1748998433153,26.0,155.09,155.02,54.44041694]
[1748998433459,26.0,155.09,155.03,14.68041694]
[1748998433460,14.68041694,155.08,155.03,14.68041694]
[1748998434162,14.68041694,155.08,155.03,16.30351694]
[1748998437938,14.68041694,155.08,155.03,104.90351694]
[1748998438561,14.68041694,155.07,155.03,104.90351694]
[1748998438940,0.8814172,155.1,155.03,90.2231]
[1748998439146,14.68041694,155.06,155.03,88.6]
[1748998440360,14.68041694,155.07,155.03,88.6]
[1748998441159,14.68041694,155.08,155.04,14.68041694]
[1748998441361,0.8814172,155.1,155.05,14.68041694]
[1748998441362,14.68041694,155.09,155.05,14.68041694]
[1748998441544,15.56183414,155.1,155.06,39.74]
[1748998441735,0.8814172,155.1,155.08,14.68041694]
[1748998443664,0.8814172,155.1,155.07,14.68041694]
[1748998445746,0.8814172,155.1,155.08,14.68041694]
[1748998446345,0.8814172,155.1,155.07,14.68041694]
[1748998446773,11.33236203,155.18,155.07,14.68041694]
[1748998446774,4.59738666,155.21,155.13,26.0]
[1748998446943,4.59738666,155.21,155.14,10.38]
[1748998446944,14.68041694,155.21,155.14,10.38]
[1748998447141,14.68041694,155.2,155.15,54.42041694]
[1748998447342,14.68041694,155.17,155.15,39.74]
[1748998447576,26.14216157,155.23,155.11,26.0]
[1748998447577,14.68041694,155.16,155.11,26.0]
[1748998447768,20.87171694,155.2,155.12,39.74]
[1748998447769,14.68041694,155.15,155.12,39.74]
[1748998448161,14.68041694,155.16,155.12,39.74]
[1748998449466,46.87171694,155.2,155.12,39.74]
[1748998449467,14.68041694,155.17,155.13,14.68041694]
[1748998451056,14.68041694,155.17,155.12,54.42041694]
[1748998451458,14.68041694,155.17,155.13,14.68041694]
[1748998451660,14.68041694,155.17,155.12,39.74]
[1748998451869,14.68041694,155.18,155.13,14.68041694]
[1748998452887,14.68041694,155.14,155.1,25.06041694]
[1748998453056,14.68041694,155.14,155.11,39.72]
[1748998453259,14.68041694,155.13,155.1,10.38]
[1748998453460,14.68041694,155.13,155.11,39.72]
[1748998453881,14.68041694,155.13,155.1,10.38]
[1748998454099,14.68041694,155.13,155.11,39.72]
[1748998454266,14.68041694,155.14,155.11,39.72]
[1748998456100,1.5161,155.23,155.13,14.68041694]
[1748998456393,14.68041694,155.21,155.16,14.68041694]
[1748998456596,14.68041694,155.2,155.17,39.72]
[1748998457859,27.5161,155.23,155.17,54.40041694]
[1748998458187,27.5161,155.23,155.18,14.68041694]
[1748998458188,14.68041694,155.23,155.18,14.68041694]
[1748998458383,40.68041694,155.24,155.19,14.68041694]
[1748998458694,14.68041694,155.22,155.17,39.72]
[1748998458905,14.68041694,155.22,155.18,14.68041694]
[1748998459283,14.68041694,155.23,155.18,14.68041694]
[1748998459608,14.68041694,155.23,155.19,14.68041694]
[1748998460494,1.6122,155.27,155.22,14.68041694]
[1748998460680,14.68041694,155.26,155.23,39.72]
[1748998461080,14.68041694,155.24,155.23,39.72]
[1748998461591,14.68041694,155.24,155.18,1.6218]
[1748998461900,14.68041694,155.21,155.19,39.72]
[1748998462102,14.68041694,155.22,155.2,39.72]
[1748998463372,26.0,155.25,155.2,39.72]
[1748998463373,14.68041694,155.23,155.2,39.72]
[1748998465081,14.68041694,155.25,155.2,54.40041694]
[1748998465508,14.68041694,155.24,155.2,54.40041694]
[1748998465798,14.68041694,155.23,155.2,39.72]
[1748998467798,14.68041694,155.24,155.2,54.40041694]
[1748998468194,14.68041694,155.27,155.22,14.68041694]
[1748998468398,14.68041694,155.26,155.22,14.68041694]
[1748998470883,26.0,155.28,155.22,14.68041694]
[1748998471082,14.68041694,155.26,155.22,14.68041694]
[1748998471603,14.68041694,155.25,155.21,14.68041694]
[1748998472508,14.68041694,155.26,155.22,14.68041694]
[1748998474107,25.28633711,155.31,155.23,25.06041694]
[1748998474322,26.0,155.28,155.24,14.68041694]
[1748998474614,26.0,155.28,155.25,39.7]
[1748998474898,14.68041694,155.29,155.25,39.7]
[1748998476420,14.68041694,155.28,155.25,39.7]
[1748998477615,14.68041694,155.29,155.25,39.7]
[1748998477989,14.68041694,155.3,155.25,54.38041694]
[1748998480686,14.68041694,155.27,155.2,6.5084]
[1748998481024,14.68041694,155.27,155.18,39.68]
[1748998481025,14.68041694,155.21,155.18,39.68]
[1748998481185,14.68041694,155.22,155.18,39.68]
[1748998481502,14.68041694,155.23,155.19,14.68041694]
[1748998481704,14.68041694,155.23,155.18,54.36041694]
[1748998481906,14.68041694,155.22,155.18,54.36041694]
[1748998482624,14.68041694,155.23,155.18,54.36041694]
[1748998484705,14.68041694,155.23,155.19,14.68041694]
[1748998485018,14.68041694,155.23,155.18,54.36041694]
[1748998485810,14.68041694,155.23,155.19,14.68041694]
[1748998486022,14.68041694,155.24,155.19,14.68041694]
[1748998486208,14.68041694,155.24,155.2,14.68041694]
[1748998486517,14.68041694,155.24,155.21,10.38]
[1748998486712,14.68041694,155.24,155.22,39.68]
[1748998487098,40.82257851,155.28,155.22,39.68]
[1748998487099,14.68041694,155.25,155.22,39.68]
[1748998487605,14.68041694,155.24,155.22,39.68]
[1748998489506,40.68041694,155.28,155.22,39.68]
[1748998489708,14.68041694,155.24,155.22,39.68]
[1748998490418,14.68041694,155.25,155.22,39.68]
[1748998492518,14.68041694,155.26,155.22,39.68]
[1748998493598,14.68041694,155.25,155.22,39.68]
[1748998496225,14.68041694,155.24,155.22,39.68]
[1748998498710,14.68041694,155.25,155.22,39.68]
[1748998504318,14.68041694,155.25,155.21,10.38]
[1748998504521,14.68041694,155.25,155.22,39.68]
[1748998508542,14.68041694,155.23,155.21,10.38]
[1748998508711,14.68041694,155.23,155.16,95.26842314]
[1748998508712,14.68041694,155.22,155.16,10.36]
[1748998508911,1.6384,155.23,155.17,39.68]
[1748998508912,14.68041694,155.18,155.17,39.68]
[1748998509221,1.6384,155.23,155.17,39.68]
[1748998509222,14.68041694,155.19,155.17,39.68]
[1748998509539,14.68041694,155.21,155.17,39.68]
[1748998509749,14.68041694,155.21,155.17,54.36041694]
[1748998510451,1.6384,155.23,155.16,10.36]
[1748998510452,14.68041694,155.2,155.16,10.36]
[1748998510622,14.68041694,155.2,155.18,39.68]
[1748998510946,14.68041694,155.19,155.18,39.68]
[1748998511832,14.68041694,155.2,155.18,39.68]
[1748998513037,14.68041694,155.19,155.16,10.36]
[1748998513237,14.68041694,155.19,155.18,39.68]
[1748998513431,14.68041694,155.2,155.18,39.68]
[1748998513654,1.6384,155.23,155.18,39.68]
[1748998513655,14.68041694,155.21,155.18,39.68]
[1748998513845,1.6384,155.23,155.18,39.68]
[1748998513846,14.68041694,155.2,155.18,39.68]
[1748998515034,14.68041694,155.19,155.18,39.68]
[1748998515431,14.68041694,155.2,155.18,39.68]
[1748998515662,14.68041694,155.19,155.18,39.68]
[1748998516045,14.68041694,155.2,155.18,39.68]
[1748998516365,1.6384,155.23,155.18,39.68]
[1748998516366,0.14216157,155.23,155.18,39.68]
[1748998516540,14.68041694,155.22,155.18,39.68]
[1748998519444,14.68041694,155.22,155.18,54.36041694]
[1748998520957,14.68041694,155.22,155.18,39.68]
[1748998523861,14.68041694,155.22,155.18,54.36041694]
[1748998524758,14.68041694,155.22,155.18,39.68]
[1748998525662,14.68041694,155.21,155.18,39.68]
[1748998527945,14.68041694,155.22,155.18,39.68]
[1748998532064,46.45831043,155.26,155.18,39.68]
[1748998532065,14.68041694,155.21,155.18,39.68]
[1748998532675,14.68041694,155.22,155.18,39.68]
[1748998535365,14.68041694,155.22,155.18,54.36041694]
[1748998536562,14.68041694,155.22,155.18,64.72041694]
[1748998536761,14.68041694,155.24,155.19,14.68041694]
[1748998536965,14.68041694,155.24,155.18,138.64]
[1748998536966,14.68041694,155.24,155.2,14.68041694]
[1748998537153,14.68041694,155.25,155.2,14.68041694]
[1748998537355,35.13134886,155.29,155.21,14.68041694]
[1748998537356,14.68041694,155.26,155.21,14.68041694]
[1748998537569,14.68041694,155.27,155.23,14.68041694]
[1748998537864,14.68041694,155.29,155.25,14.68041694]
[1748998538071,14.68041694,155.29,155.24,54.36041694]
[1748998538373,44.79181043,155.32,155.24,54.36041694]
[1748998538374,14.68041694,155.28,155.24,39.68]
[1748998540149,14.68041694,155.27,155.24,39.68]
[1748998541181,14.68041694,155.28,155.24,39.68]
[1748998541349,14.68041694,155.28,155.24,54.36041694]
[1748998549474,14.68041694,155.29,155.24,54.36041694]
[1748998549867,26.14216157,155.32,155.24,54.36041694]
[1748998549868,14.68041694,155.3,155.25,14.68041694]
[1748998550780,14.68041694,155.3,155.26,14.68041694]
[1748998551075,14.68041694,155.31,155.26,14.68041694]
[1748998552966,14.68041694,155.3,155.26,14.68041694]
[1748998553576,14.68041694,155.3,155.25,14.68041694]
[1748998556071,14.68041694,155.3,155.26,14.68041694]
[1748998560374,27.518,155.34,155.27,14.68041694]
[1748998560580,14.68041694,155.33,155.28,54.32041694]
[1748998560775,14.68041694,155.3,155.28,39.64]
[1748998561780,14.68041694,155.29,155.28,39.64]
[1748998561987,0.14216157,155.33,155.28,39.64]
[1748998561988,14.68041694,155.3,155.28,39.64]
[1748998562179,38.48879455,155.37,155.28,54.32041694]
[1748998562180,16.6349,155.37,155.28,54.32041694]
[1748998562496,14.68041694,155.33,155.29,14.68041694]
[1748998563266,9.33163403,155.33,155.29,9.33163403]
[1748998565275,14.58093228,155.33,155.29,14.58093228]
[1748998565992,14.58093228,155.33,155.28,153.18093228]
[1748998568982,14.58093228,155.33,155.29,14.58093228]
[1748998570874,26.0,155.36,155.28,153.18093228]
[1748998570875,14.58093228,155.32,155.28,153.18093228]
[1748998571073,14.58093228,155.31,155.28,50.0]
[1748998571279,18.79181043,155.35,155.29,39.64]
[1748998571470,14.58093228,155.3,155.29,39.64]
[1748998573096,14.58093228,155.32,155.29,39.64]
[1748998573599,14.58093228,155.31,155.29,39.64]
[1748998573795,14.58093228,155.31,155.28,10.36]
[1748998573796,14.58093228,155.3,155.25,14.58093228]
[1748998573982,0.14216157,155.35,155.25,14.58093228]
[1748998573983,14.58093228,155.29,155.26,49.96]
[1748998574393,14.58093228,155.28,155.27,39.62]
[1748998574778,14.58093228,155.28,155.26,10.34]
[1748998575103,14.58093228,155.27,155.26,10.34]
[1748998575281,14.58093228,155.27,155.26,49.96]
[1748998575673,14.58093228,155.28,155.26,49.96]
[1748998575912,26.0,155.33,155.26,49.96]
[1748998575913,14.58093228,155.29,155.26,49.96]
[1748998576222,14.58093228,155.3,155.26,49.96]
[1748998576577,14.58093228,155.29,155.26,49.96]
[1748998577189,14.58093228,155.3,155.26,64.54093228]
[1748998577701,14.58093228,155.3,155.26,49.96]
[1748998579688,14.58093228,155.32,155.27,14.58093228]
[1748998579900,14.58093228,155.32,155.28,14.58093228]
[1748998580200,14.58093228,155.32,155.27,14.58093228]
[1748998581194,14.58093228,155.32,155.28,14.58093228]
[1748998581796,14.58093228,155.31,155.27,14.58093228]
[1748998582176,14.58093228,155.29,155.26,10.34]
[1748998582377,14.58093228,155.28,155.25,39.62]
[1748998582577,14.58093228,155.29,155.25,39.62]
[1748998582774,0.42648471,155.34,155.25,54.20093228]
[1748998582775,14.58093228,155.3,155.25,54.20093228]
[1748998584104,14.58093228,155.28,155.25,39.62]
[1748998584309,14.58093228,155.36,155.28,0.28432314]
[1748998584604,1.02357877,155.41,155.34,14.58093228]
[1748998584807,1.02357877,155.41,155.35,39.62]
[1748998584808,40.58093228,155.39,155.35,39.62]
[1748998584995,14.58093228,155.39,155.35,39.62]
[1748998585189,0.8814172,155.41,155.35,54.20093228]
[1748998585387,14.58093228,155.39,155.35,54.20093228]
[1748998586194,26.8814172,155.41,155.35,54.20093228]
[1748998586411,14.58093228,155.4,155.35,54.20093228]
[1748998586783,14.58093228,155.39,155.35,54.20093228]
[1748998587080,14.58093228,155.38,155.35,39.62]
[1748998587701,14.58093228,155.38,155.36,39.62]
[1748998588697,14.58093228,155.39,155.36,39.62]
[1748998589887,14.58093228,155.38,155.36,39.62]
[1748998590105,14.58093228,155.37,155.36,39.62]
[1748998590506,14.58093228,155.37,155.34,10.34]
[1748998590809,14.58093228,155.37,155.35,39.62]
[1748998591899,14.58093228,155.36,155.32,88.6]
[1748998592102,14.58093228,155.36,155.28,153.9489]
[1748998592103,14.58093228,155.33,155.29,10.34]
[1748998592306,14.58093228,155.31,155.3,39.62]
[1748998592686,14.58093228,155.32,155.29,10.34]
[1748998593016,14.58093228,155.32,155.3,39.6]
[1748998593209,14.58093228,155.32,155.29,10.34]
[1748998593717,14.58093228,155.32,155.3,39.6]
[1748998594418,14.58093228,155.31,155.3,39.6]
[1748998595430,26.0,155.36,155.3,39.6]
[1748998595590,1.5481,155.4,155.3,54.18093228]
[1748998595591,14.58093228,155.35,155.3,54.18093228]
[1748998596087,14.58093228,155.34,155.3,39.6]
[1748998596418,1.5481,155.4,155.32,14.58093228]
[1748998596585,14.58093228,155.37,155.31,1.5656]
[1748998596785,14.58093228,155.37,155.32,14.58093228]
[1748998597206,26.0,155.4,155.34,14.58093228]
[1748998597413,14.58093228,155.39,155.35,54.18093228]
[1748998597592,14.58093228,155.4,155.35,54.18093228]
[1748998599012,14.58093228,155.39,155.35,54.18093228]
[1748998601596,14.58093228,155.4,155.35,54.18093228]
[1748998602235,15.46234948,155.41,155.36,14.58093228]
[1748998602898,14.58093228,155.4,155.36,14.58093228]
[1748998603302,14.58093228,155.39,155.35,128.2]
[1748998603913,14.58093228,155.39,155.35,142.78093228]
[1748998604518,14.58093228,155.39,155.35,128.2]
[1748998605346,14.58093228,155.36,155.34,10.34]
[1748998605497,14.58093228,155.35,155.34,49.94]
[1748998606113,14.58093228,155.36,155.34,49.94]
[1748998606414,14.58093228,155.37,155.34,49.94]
[1748998608112,18.79181043,155.4,155.34,49.94]
[1748998608113,0.14216157,155.39,155.34,49.94]
[1748998608313,14.58093228,155.37,155.34,49.94]
[1748998609924,14.58093228,155.36,155.34,49.94]
[1748998610827,14.58093228,155.36,155.34,10.34]
[1748998611021,0.8814172,155.41,155.35,39.6]
[1748998611320,14.58093228,155.36,155.35,39.6]
[1748998612222,14.58093228,155.37,155.35,39.6]
[1748998613015,14.58093228,155.36,155.35,39.6]
[1748998614426,1.02357877,155.41,155.35,39.6]
[1748998614720,14.58093228,155.36,155.35,39.6]
[1748998615024,14.58093228,155.37,155.35,39.6]
[1748998615623,0.8814172,155.41,155.35,39.6]
[1748998615799,0.8814172,155.41,155.36,14.58093228]
[1748998615996,15.46234948,155.41,155.36,14.58093228]
[1748998616400,14.58093228,155.4,155.36,14.58093228]
[1748998618213,15.46234948,155.41,155.36,14.58093228]
[1748998619826,15.46234948,155.41,155.4,14.58093228]
[1748998619827,0.8814172,155.41,155.4,14.58093228]
[1748998620129,0.8814172,155.41,155.4,64.48093228]
[1748998626823,0.8814172,155.41,155.4,49.9]
[1748998627214,0.8814172,155.41,155.4,10.32]
[1748998627215,15.46234948,155.41,155.4,10.32]
[1748998627414,15.46234948,155.41,155.36,10.32]
[1748998627616,15.46234948,155.41,155.37,39.58]
[1748998630717,14.58093228,155.39,155.36,10.32]
[1748998630913,14.58093228,155.38,155.36,10.32]
[1748998631147,0.8814172,155.41,155.37,14.58093228]
[1748998631345,0.8814172,155.41,155.38,14.58093228]
[1748998632151,0.8814172,155.41,155.39,14.58093228]
[1748998633417,0.8814172,155.41,155.38,14.58093228]
[1748998634145,0.8814172,155.41,155.37,14.58093228]
[1748998634520,0.8814172,155.41,155.36,49.9]
[1748998634521,0.8814172,155.41,155.38,14.58093228]
[1748998635837,0.8814172,155.41,155.39,14.58093228]
[1748998636160,0.8814172,155.41,155.4,14.58093228]
[1748998636359,0.8814172,155.41,155.4,103.18093228]
[1748998638829,0.8814172,155.41,155.4,88.6]
[1748998639029,0.8814172,155.41,155.4,103.18093228]
[1748998639472,0.8814172,155.41,155.4,142.74093228]
[1748998639682,0.8814172,155.41,155.4,54.14093228]
[1748998642001,0.8814172,155.41,155.36,10.32]
[1748998642297,0.8814172,155.41,155.4,14.58093228]
[1748998647986,0.8814172,155.41,155.4,103.18093228]
[1748998648493,0.8814172,155.41,155.4,113.50093228]
[1748998649284,0.8814172,155.41,155.4,98.92]
[1748998649811,0.8814172,155.41,155.4,138.48]
[1748998650589,15.46234948,155.41,155.4,138.48]
[1748998650774,15.46234948,155.41,155.4,98.92]
[1748998651087,15.46234948,155.41,155.4,138.48]
[1748998651287,0.8814172,155.41,155.4,138.48]
[1748998651699,0.8814172,155.41,155.4,98.92]
[1748998651899,15.46234948,155.41,155.4,88.6]
[1748998652102,15.46234948,155.41,155.34,10.32]
[1748998652403,14.58093228,155.35,155.34,10.32]
[1748998652597,14.58093228,155.36,155.34,49.88]
[1748998653103,14.58093228,155.36,155.34,10.32]
[1748998653299,14.58093228,155.36,155.34,49.88]
[1748998653474,0.8814172,155.41,155.34,49.88]
[1748998653475,14.58093228,155.37,155.34,49.88]
[1748998654594,14.58093228,155.37,155.35,39.56]
[1748998655609,14.58093228,155.36,155.35,39.56]
[1748998658106,14.58093228,155.36,155.34,10.32]
[1748998658312,14.58093228,155.35,155.34,49.88]
[1748998658615,14.58093228,155.35,155.33,39.56]
[1748998658793,14.58093228,155.34,155.3,24.90093228]
[1748998659109,14.58093228,155.34,155.32,39.56]
[1748998659614,14.58093228,155.33,155.32,39.56]
[1748998660412,14.58093228,155.34,155.32,39.56]
[1748998660605,8.1681,155.39,155.32,39.56]
[1748998660915,14.58093228,155.35,155.32,39.56]
[1748998661496,14.58093228,155.36,155.32,39.56]
[1748998663015,14.58093228,155.36,155.33,39.58]
[1748998664203,8.1681,155.39,155.33,39.58]
[1748998664521,14.58093228,155.36,155.33,39.58]
[1748998667026,8.1681,155.39,155.33,39.58]
[1748998667210,14.58093228,155.36,155.33,39.58]
[1748998668701,14.58093228,155.37,155.33,54.16093228]
[1748998670800,14.58093228,155.37,155.33,39.58]
[1748998671021,1.02357877,155.41,155.34,14.58093228]
[1748998671223,14.58093228,155.38,155.34,14.58093228]
[1748998671406,14.58093228,155.38,155.33,54.16093228]
[1748998672613,0.8814172,155.41,155.33,54.16093228]
[1748998672954,0.8814172,155.41,155.35,14.58093228]
[1748998672955,14.58093228,155.4,155.35,14.58093228]
[1748998674625,14.58093228,155.4,155.36,14.58093228]
[1748998676019,15.46234948,155.41,155.37,14.58093228]
[1748998676227,15.46234948,155.41,155.38,39.58]
[1748998677539,0.8814172,155.41,155.38,39.58]
[1748998678843,0.8814172,155.41,155.39,14.58093228]
[1748998679045,0.8814172,155.41,155.4,14.58093228]
[1748998680545,0.8814172,155.41,155.4,24.90093228]
[1748998682347,0.8814172,155.41,155.4,10.32]
[1748998682348,15.46234948,155.41,155.4,10.32]
[1748998682519,15.46234948,155.41,155.39,39.56]
[1748998682959,0.8814172,155.41,155.38,14.58093228]
[1748998683122,0.8814172,155.41,155.39,39.56]
[1748998684134,14.58093228,155.4,155.39,39.56]
[1748998684361,14.58093228,155.4,155.36,10.32]
[1748998684552,14.58093228,155.38,155.37,39.56]
[1748998685057,14.58093228,155.39,155.37,39.56]
[1748998686459,0.8814172,155.41,155.37,54.14093228]
[1748998686662,0.8814172,155.41,155.38,14.58093228]
[1748998686839,0.8814172,155.41,155.39,14.58093228]
[1748998687153,0.8814172,155.41,155.4,14.58093228]
[1748998689460,0.8814172,155.41,155.39,14.58093228]
[1748998693249,0.8814172,155.41,155.36,10.32]
[1748998693437,14.58093228,155.4,155.37,39.56]
[1748998693745,0.8814172,155.41,155.37,54.14093228]
[1748998693929,0.8814172,155.41,155.38,14.58093228]
[1748998699969,0.8814172,155.41,155.39,39.56]
[1748998700557,0.8814172,155.41,155.4,14.58093228]
[1748998700865,0.8814172,155.41,155.39,54.14093228]
[1748998702057,0.8814172,155.41,155.39,39.56]
[1748998704167,0.8814172,155.41,155.39,142.74093228]
[1748998705574,0.8814172,155.41,155.39,128.16]
[1748998708056,0.8814172,155.41,155.39,142.74093228]
[1748998710562,0.8814172,155.41,155.4,10.3]
[1748998714972,15.46234948,155.41,155.4,10.3]
[1748998715273,15.46234948,155.41,155.4,49.84]
[1748998715963,15.46234948,155.41,155.4,39.54]
[1748998725789,0.8814172,155.41,155.4,39.54]
[1748998727880,0.8814172,155.41,155.4,128.14]
[1748998730715,0.8814172,155.41,155.4,138.44]
[1748998743804,10.19852735,155.41,155.37,98.9]
[1748998743980,9.31711015,155.39,155.38,39.52]
[1748998745892,9.31711015,155.4,155.38,39.52]
[1748998747401,14.56554514,155.4,155.38,39.52]
[1748998747707,14.56554514,155.4,155.37,98.9]
[1748998747886,14.56554514,155.4,155.39,39.52]
[1748998754302,14.56554514,155.4,155.37,10.3]
[1748998754499,14.56554514,155.4,155.38,39.52]
[1748998754897,14.56554514,155.39,155.38,39.52]
[1748998756621,14.56554514,155.39,155.37,98.9]
[1748998756784,14.56554514,155.38,155.37,98.9]
[1748998756995,14.56554514,155.38,155.37,138.42]
[1748998757812,14.56554514,155.39,155.37,138.42]
[1748998759914,0.8814172,155.41,155.37,138.42]
[1748998759915,14.56554514,155.4,155.37,138.42]
[1748998761717,14.56554514,155.39,155.37,138.42]
[1748998762415,14.56554514,155.38,155.37,138.42]
[1748998762592,14.56554514,155.38,155.37,98.9]
[1748998762789,14.56554514,155.38,155.32,47.16350671]
[1748998762790,29.13109028,155.38,155.29,1.6379]
[1748998763052,29.13109028,155.38,155.3,39.52]
[1748998763053,14.56554514,155.31,155.3,39.52]
[1748998763189,14.56554514,155.31,155.29,10.3]
[1748998763509,14.56554514,155.32,155.3,39.52]
[1748998763988,26.0,155.37,155.3,39.52]
[1748998764192,14.56554514,155.32,155.3,39.52]
[1748998764621,14.56554514,155.33,155.3,39.52]
[1748998766916,14.56554514,155.33,155.29,10.3]
[1748998767099,14.56554514,155.33,155.31,39.52]
[1748998767497,26.0,155.37,155.31,39.52]
[1748998767498,14.56554514,155.32,155.31,39.52]
[1748998769996,14.56554514,155.32,155.29,98.9]
[1748998770193,14.56554514,155.31,155.3,39.52]
[1748998771020,14.56554514,155.32,155.3,39.52]
[1748998771411,14.56554514,155.32,155.29,98.9]
[1748998771412,14.56554514,155.32,155.31,39.52]
[1748998774424,1.6448,155.37,155.31,39.52]
[1748998774624,14.56554514,155.35,155.31,142.68554514]
[1748998775807,14.56554514,155.35,155.31,128.12]
[1748998776329,14.56554514,155.35,155.31,142.68554514]
[1748998777515,26.14216157,155.39,155.31,142.68554514]
[1748998777702,14.56554514,155.35,155.31,142.68554514]
[1748998779932,14.56554514,155.36,155.31,142.68554514]
[1748998780232,6.1262,155.4,155.33,14.56554514]
[1748998780531,14.56554514,155.38,155.34,14.56554514]
[1748998780706,14.56554514,155.38,155.35,39.52]
[1748998782809,14.56554514,155.37,155.35,39.52]
[1748998783016,14.56554514,155.36,155.35,39.52]
[1748998784920,14.56554514,155.36,155.3,26.0]
[1748998785122,14.56554514,155.33,155.31,39.52]
[1748998785513,14.56554514,155.34,155.29,24.86554514]
[1748998785816,14.56554514,155.34,155.3,39.52]
[1748998786228,14.56554514,155.35,155.31,14.56554514]
[1748998786811,14.56554514,155.35,155.3,54.08554514]
[1748998788932,14.56554514,155.36,155.31,14.56554514]
[1748998790037,0.8814172,155.41,155.35,14.56554514]
[1748998790235,14.56554514,155.4,155.36,39.52]
[1748998792352,0.8814172,155.41,155.36,54.08554514]
[1748998792535,15.44696234,155.41,155.36,54.08554514]
[1748998792933,15.44696234,155.41,155.36,39.52]
[1748998793145,0.8814172,155.41,155.39,14.56554514]
[1748998793737,0.8814172,155.41,155.39,24.84554514]
[1748998797083,0.8814172,155.41,155.4,14.84986828]
[1748998798249,0.8814172,155.41,155.4,103.44986828]